[Event "*** Titled Tuesday Blitz"]
[Site "Chess.com"]
[Date "2020.04.21"]
[Round "5"]
[White "Gennady_Kozlov"]
[Black "Sviridov_Valery"]
[Result "0-1"]
[WhiteElo "2579"]
[BlackElo "2863"]
[TimeControl "180+1"]
[EndTime "10:56:07 PDT"]
[Termination "Sviridov_Valery won by resignation"]

1. b3 {[%clk 0:03:00.9]} 1... Nf6 {[%clk 0:02:56.2]} 2. Bb2 {[%clk 0:03:01.1]}
2... g6 {[%clk 0:02:57.1]} 3. e3 {[%clk 0:03:01.4]} 3... Bg7 {[%clk 0:02:56.6]}
4. f4 {[%clk 0:03:02.1]} 4... O-O {[%clk 0:02:56.8]} 5. Nf3 {[%clk 0:03:02.6]}
5... d6 {[%clk 0:02:57.5]} 6. Be2 {[%clk 0:03:03.1]} 6... Nbd7 {[%clk
0:02:57.1]} 7. O-O {[%clk 0:03:03.8]} 7... e5 {[%clk 0:02:57.7]} 8. fxe5 {[%clk
0:03:03.9]} 8... Ng4 {[%clk 0:02:58.2]} 9. h3 {[%clk 0:03:00]} 9... Ngxe5 {[%clk
0:02:57.9]} 10. Nxe5 {[%clk 0:03:00.6]} 10... Nxe5 {[%clk 0:02:58.8]} 11. d4
{[%clk 0:03:01]} 11... Nd7 {[%clk 0:02:55]} 12. Bd3 {[%clk 0:02:55.3]} 12... Qg5
{[%clk 0:02:51.4]} 13. Qf3 {[%clk 0:02:52.5]} 13... Nc5 {[%clk 0:02:26.8]} 14.
Nd2 {[%clk 0:02:34.7]} 14... Nxd3 {[%clk 0:02:25.3]} 15. cxd3 {[%clk 0:02:33.1]}
15... Bf5 {[%clk 0:02:25.3]} 16. Ne4 {[%clk 0:02:25]} 16... Qe7 {[%clk
0:02:24.9]} 17. Rab1 {[%clk 0:02:19.5]} 17... Rae8 {[%clk 0:02:23.9]} 18. Rbc1
{[%clk 0:02:14.6]} 18... d5 {[%clk 0:01:59.6]} 19. Nf2 {[%clk 0:02:08.5]} 19...
Qxe3 {[%clk 0:01:58.3]} 20. Rxc7 {[%clk 0:01:49.4]} 20... Qxf3 {[%clk
0:01:56.3]} 21. gxf3 {[%clk 0:01:49.2]} 21... Re2 {[%clk 0:01:57.2]} 22. Ba3
{[%clk 0:01:44.8]} 22... Rfe8 {[%clk 0:01:55.9]} 23. Rxb7 {[%clk 0:01:43.9]}
23... Bxd4 {[%clk 0:01:54.6]} 24. Rb4 {[%clk 0:01:35.8]} 24... Be3 {[%clk
0:01:54.5]} 25. Kg2 {[%clk 0:01:28.2]} 25... Rxa2 {[%clk 0:01:53.3]} 26. Bc1
{[%clk 0:01:26]} 26... Rxf2+ {[%clk 0:01:52.7]} 27. Rxf2 {[%clk 0:01:24.4]}
27... Bxc1 {[%clk 0:01:53.6]} 28. Rb7 {[%clk 0:01:19.5]} 28... Be3 {[%clk
0:01:52.3]} 29. Re2 {[%clk 0:01:19]} 29... Bxd3 {[%clk 0:01:52.6]} 30. Re1
{[%clk 0:01:19]} 30... a6 {[%clk 0:01:52]} 31. Rd7 {[%clk 0:01:15.1]} 31... Re5
{[%clk 0:01:41.5]} 32. Rd1 {[%clk 0:00:46.4]} 32... Bc2 {[%clk 0:01:38]} 33.
R1xd5 {[%clk 0:00:43.7]} 33... Rxd5 {[%clk 0:01:38.9]} 34. Rxd5 {[%clk
0:00:43.8]} 34... Kg7 {[%clk 0:01:25.7]} 35. Rd6 {[%clk 0:00:41.1]} 35... a5
{[%clk 0:01:21.8]} 36. Rd5 {[%clk 0:00:40.9]} 36... Bb6 {[%clk 0:01:20.5]} 37.
Rb5 {[%clk 0:00:40.9]} 37... Bd8 {[%clk 0:01:19.7]} 38. Rd5 {[%clk 0:00:41]}
38... Bf6 {[%clk 0:01:18.9]} 39. Rxa5 {[%clk 0:00:40.9]} 39... Bxb3 {[%clk
0:01:19.4]} 40. Ra3 {[%clk 0:00:41.6]} 40... Be6 {[%clk 0:01:20.3]} 41. Re3
{[%clk 0:00:41.5]} 41... h5 {[%clk 0:01:20.9]} 42. Kg3 {[%clk 0:00:41.5]} 42...
h4+ {[%clk 0:01:19.8]} 43. Kg2 {[%clk 0:00:41.4]} 43... g5 {[%clk 0:01:20.7]}
44. Rd3 {[%clk 0:00:41]} 44... Kg6 {[%clk 0:01:21]} 45. Re3 {[%clk 0:00:41.1]}
45... Bd4 {[%clk 0:01:20.5]} 46. Rd3 {[%clk 0:00:41.2]} 46... Be5 {[%clk
0:01:21]} 47. Re3 {[%clk 0:00:41.3]} 47... Kf5 {[%clk 0:01:21]} 48. Re4 {[%clk
0:00:40.8]} 48... Bd5 {[%clk 0:01:20.3]} 49. Ra4 {[%clk 0:00:41.4]} 49... f6
{[%clk 0:01:20.1]} 50. Rb4 {[%clk 0:00:41.3]} 50... Bd6 {[%clk 0:01:17.1]} 51.
Rd4 {[%clk 0:00:41.3]} 51... Ke5 {[%clk 0:01:17.5]} 52. Ra4 {[%clk 0:00:41.2]}
52... f5 {[%clk 0:01:17.6]} 53. Rb4 {[%clk 0:00:40.4]} 53... Bxb4 {[%clk
0:01:17]} 0-1

[Event "*** Titled Tuesday Blitz"]
[Site "Chess.com"]
[Date "2020.04.21"]
[Round "5"]
[White "GMMarcinDziuba"]
[Black "Jbd735"]
[Result "1-0"]
[WhiteElo "2693"]
[BlackElo "2459"]
[TimeControl "180+1"]
[EndTime "10:56:08 PDT"]
[Termination "GMMarcinDziuba won on time"]

1. Nf3 {[%clk 0:03:00.9]} 1... d5 {[%clk 0:02:59.5]} 2. e3 {[%clk 0:03:01.1]}
2... Nf6 {[%clk 0:02:58.9]} 3. b3 {[%clk 0:03:00.8]} 3... c6 {[%clk 0:02:56.4]}
4. Bb2 {[%clk 0:03:00.9]} 4... Bg4 {[%clk 0:02:52.5]} 5. h3 {[%clk 0:03:01.1]}
5... Bxf3 {[%clk 0:02:52.2]} 6. Qxf3 {[%clk 0:03:02]} 6... Nbd7 {[%clk
0:02:51.3]} 7. g4 {[%clk 0:03:02.1]} 7... h6 {[%clk 0:02:44.9]} 8. h4 {[%clk
0:03:00.8]} 8... e5 {[%clk 0:02:38]} 9. g5 {[%clk 0:02:45.3]} 9... hxg5 {[%clk
0:02:36.9]} 10. hxg5 {[%clk 0:02:46.2]} 10... Rxh1 {[%clk 0:02:37.1]} 11. Qxh1
{[%clk 0:02:46.2]} 11... Ne4 {[%clk 0:02:35]} 12. g6 {[%clk 0:02:45.9]} 12...
fxg6 {[%clk 0:02:14]} 13. Nc3 {[%clk 0:02:44.9]} 13... Nxc3 {[%clk 0:02:00.4]}
14. dxc3 {[%clk 0:02:44.7]} 14... Qf6 {[%clk 0:01:55.8]} 15. Qg2 {[%clk
0:02:43.2]} 15... O-O-O {[%clk 0:01:55.1]} 16. O-O-O {[%clk 0:02:43.2]} 16... e4
{[%clk 0:01:48.6]} 17. c4 {[%clk 0:02:04.5]} 17... Qf7 {[%clk 0:01:08.3]} 18.
cxd5 {[%clk 0:01:59.4]} 18... cxd5 {[%clk 0:01:08.9]} 19. c4 {[%clk 0:01:50.2]}
19... Nf6 {[%clk 0:00:45.5]} 20. Qg3 {[%clk 0:01:28]} 20... Bd6 {[%clk
0:00:41.2]} 21. Qg5 {[%clk 0:01:25.5]} 21... Kb8 {[%clk 0:00:27.4]} 22. cxd5
{[%clk 0:01:22.7]} 22... Rc8+ {[%clk 0:00:23.2]} 23. Kb1 {[%clk 0:01:22.7]}
23... Qe7 {[%clk 0:00:18]} 24. Bh3 {[%clk 0:01:13.5]} 24... Rc5 {[%clk
0:00:15.9]} 25. Qxg6 {[%clk 0:01:06.3]} 25... Nxd5 {[%clk 0:00:11.9]} 26. Qe6
{[%clk 0:00:41.7]} 26... Qxe6 {[%clk 0:00:08.7]} 27. Bxe6 {[%clk 0:00:42.6]} 1-0

[Event "*** Titled Tuesday Blitz"]
[Site "Chess.com"]
[Date "2020.04.21"]
[Round "5"]
[White "ZAbdumalik"]
[Black "JoakimVonAnd"]
[Result "0-1"]
[WhiteElo "2689"]
[BlackElo "2520"]
[TimeControl "180+1"]
[EndTime "10:56:12 PDT"]
[Termination "JoakimVonAnd won by checkmate"]

1. e4 {[%clk 0:03:00.9]} 1... c6 {[%clk 0:02:59.2]} 2. d4 {[%clk 0:03:00.7]}
2... d5 {[%clk 0:03:00.1]} 3. Nd2 {[%clk 0:03:01.4]} 3... dxe4 {[%clk
0:02:59.7]} 4. Nxe4 {[%clk 0:03:02.3]} 4... Bf5 {[%clk 0:02:59.3]} 5. Ng3 {[%clk
0:03:02.4]} 5... Bg6 {[%clk 0:02:59.6]} 6. h4 {[%clk 0:03:03.3]} 6... h6 {[%clk
0:02:59.1]} 7. Nh3 {[%clk 0:03:04.2]} 7... Nf6 {[%clk 0:02:58.4]} 8. Nf4 {[%clk
0:03:04.7]} 8... Bh7 {[%clk 0:02:58.6]} 9. Be3 {[%clk 0:03:05]} 9... e6 {[%clk
0:02:58.1]} 10. Bd3 {[%clk 0:03:05.3]} 10... Bxd3 {[%clk 0:02:56.3]} 11. Qxd3
{[%clk 0:03:05.6]} 11... Bd6 {[%clk 0:02:55.8]} 12. O-O-O {[%clk 0:03:04.6]}
12... Nbd7 {[%clk 0:02:55.4]} 13. Ngh5 {[%clk 0:03:03.6]} 13... Nxh5 {[%clk
0:02:45.3]} 14. Nxh5 {[%clk 0:03:03.4]} 14... g6 {[%clk 0:02:41.5]} 15. Nf4
{[%clk 0:03:02.5]} 15... Qf6 {[%clk 0:02:41]} 16. g3 {[%clk 0:02:59]} 16...
O-O-O {[%clk 0:02:39.1]} 17. Kb1 {[%clk 0:02:57.3]} 17... Qf5 {[%clk 0:02:36.3]}
18. Qxf5 {[%clk 0:02:52.6]} 18... gxf5 {[%clk 0:02:35.9]} 19. Nd3 {[%clk
0:02:43.8]} 19... Nf6 {[%clk 0:02:34.6]} 20. Ne5 {[%clk 0:02:41.1]} 20... Rh7
{[%clk 0:02:21.5]} 21. c4 {[%clk 0:02:29.4]} 21... a6 {[%clk 0:02:20.3]} 22. Kc2
{[%clk 0:02:22.3]} 22... Kc7 {[%clk 0:02:02.4]} 23. Bf4 {[%clk 0:02:12.3]} 23...
Nh5 {[%clk 0:01:58.8]} 24. Be3 {[%clk 0:02:09.3]} 24... Nf6 {[%clk 0:01:58.4]}
25. Rhe1 {[%clk 0:02:07.4]} 25... Rg8 {[%clk 0:01:56.6]} 26. Bf4 {[%clk
0:02:02.9]} 26... Nh5 {[%clk 0:01:55.9]} 27. c5 {[%clk 0:02:03]} 27... Be7
{[%clk 0:01:46.8]} 28. Ng6+ {[%clk 0:01:39]} 28... Kd7 {[%clk 0:01:32.8]} 29.
Nxe7 {[%clk 0:01:33.7]} 29... Kxe7 {[%clk 0:01:33.7]} 30. Bd6+ {[%clk
0:01:32.7]} 30... Kd7 {[%clk 0:01:33.2]} 31. Be5 {[%clk 0:01:31.7]} 31... Rg4
{[%clk 0:01:28.3]} 32. b4 {[%clk 0:01:28.5]} 32... f6 {[%clk 0:01:22]} 33. Bd6
{[%clk 0:01:28.2]} 33... f4 {[%clk 0:01:19.3]} 34. Rd3 {[%clk 0:01:23.5]} 34...
fxg3 {[%clk 0:01:16.3]} 35. fxg3 {[%clk 0:01:24]} 35... Rh8 {[%clk 0:01:14.8]}
36. a4 {[%clk 0:01:22.5]} 36... Ng7 {[%clk 0:01:08.7]} 37. Rf1 {[%clk
0:01:08.9]} 37... Nf5 {[%clk 0:01:08.1]} 38. Bf4 {[%clk 0:01:09.3]} 38... h5
{[%clk 0:01:06.7]} 39. Kc3 {[%clk 0:01:01.6]} 39... Rhg8 {[%clk 0:01:06.2]} 40.
Rff3 {[%clk 0:01:00.9]} 40... Ne7 {[%clk 0:01:06.2]} 41. Bd6 {[%clk 0:00:56.2]}
41... Nd5+ {[%clk 0:01:05.9]} 42. Kc4 {[%clk 0:00:56]} 42... e5 {[%clk
0:01:03.5]} 43. Rf2 {[%clk 0:00:40.1]} 43... Rxg3 {[%clk 0:01:02]} 44. dxe5
{[%clk 0:00:36.7]} 44... R8g4+ {[%clk 0:00:59.5]} 45. Rd4 {[%clk 0:00:34.2]}
45... Rc3# {[%clk 0:00:58.8]} 0-1

[Event "*** Titled Tuesday Blitz"]
[Site "Chess.com"]
[Date "2020.04.21"]
[Round "5"]
[White "pedromartinez91"]
[Black "aNaartjieZA"]
[Result "0-1"]
[WhiteElo "2427"]
[BlackElo "2604"]
[TimeControl "180+1"]
[EndTime "10:56:14 PDT"]
[Termination "aNaartjieZA won by resignation"]

1. e4 {[%clk 0:02:56.1]} 1... e6 {[%clk 0:02:59.1]} 2. d4 {[%clk 0:02:54.5]}
2... d5 {[%clk 0:02:59.1]} 3. Nc3 {[%clk 0:02:53.4]} 3... Bb4 {[%clk 0:02:58.9]}
4. e5 {[%clk 0:02:52.5]} 4... c5 {[%clk 0:02:58.6]} 5. a3 {[%clk 0:02:52.7]}
5... Bxc3+ {[%clk 0:02:58.5]} 6. bxc3 {[%clk 0:02:53.4]} 6... Ne7 {[%clk
0:02:59.2]} 7. h4 {[%clk 0:02:51.9]} 7... Qc7 {[%clk 0:02:58.2]} 8. h5 {[%clk
0:02:50.5]} 8... cxd4 {[%clk 0:02:57.5]} 9. cxd4 {[%clk 0:02:51]} 9... Qc3+
{[%clk 0:02:54.3]} 10. Bd2 {[%clk 0:02:50.1]} 10... Qxd4 {[%clk 0:02:54.3]} 11.
Nf3 {[%clk 0:02:49.8]} 11... Qb6 {[%clk 0:02:51.2]} 12. h6 {[%clk 0:02:46.5]}
12... gxh6 {[%clk 0:02:50.7]} 13. a4 {[%clk 0:02:42]} 13... Nbc6 {[%clk
0:02:43.7]} 14. a5 {[%clk 0:02:39.5]} 14... Qc7 {[%clk 0:02:43.4]} 15. Rh5
{[%clk 0:02:16.9]} 15... Bd7 {[%clk 0:02:35.9]} 16. a6 {[%clk 0:02:14.5]} 16...
b6 {[%clk 0:02:35.3]} 17. Bd3 {[%clk 0:02:11.8]} 17... Ng6 {[%clk 0:02:34.6]}
18. Qe2 {[%clk 0:02:07.7]} 18... O-O-O {[%clk 0:02:26.8]} 19. Kf1 {[%clk
0:02:05.1]} 19... Kb8 {[%clk 0:02:25.8]} 20. Kg1 {[%clk 0:02:03.1]} 20... Rhg8
{[%clk 0:02:20.7]} 21. g3 {[%clk 0:02:02.6]} 21... Bc8 {[%clk 0:02:02.5]} 22.
Re1 {[%clk 0:01:58.4]} 22... Qe7 {[%clk 0:01:52.7]} 23. Rxh6 {[%clk 0:01:51.4]}
23... Qc5 {[%clk 0:01:46.8]} 24. Be3 {[%clk 0:01:42.7]} 24... d4 {[%clk
0:01:46.5]} 25. Bg5 {[%clk 0:01:40.1]} 25... Rdf8 {[%clk 0:01:36.8]} 26. Bf6
{[%clk 0:01:37.2]} 26... Nf4 {[%clk 0:01:33.8]} 27. Qe4 {[%clk 0:01:32.5]} 27...
Nxd3 {[%clk 0:01:29.9]} 28. cxd3 {[%clk 0:01:33.4]} 28... Bxa6 {[%clk
0:01:29.7]} 29. Qf4 {[%clk 0:01:24.4]} 29... Bb7 {[%clk 0:01:26.4]} 30. Rc1
{[%clk 0:01:17.4]} 30... Qd5 {[%clk 0:01:26.3]} 31. Rxh7 {[%clk 0:01:03.1]}
31... Nb4 {[%clk 0:01:21.8]} 32. Rc4 {[%clk 0:00:49.8]} 32... Nxd3 {[%clk
0:01:18.6]} 33. Qxd4 {[%clk 0:00:34.1]} 33... Qxf3 {[%clk 0:01:16.8]} 34. Qd6+
{[%clk 0:00:29.2]} 34... Ka8 {[%clk 0:01:16.1]} 35. Rc6 {[%clk 0:00:18.5]} 35...
Bxc6 {[%clk 0:01:13.3]} 0-1

[Event "*** Titled Tuesday Blitz"]
[Site "Chess.com"]
[Date "2020.04.21"]
[Round "5"]
[White "DenishevM"]
[Black "kingnb"]
[Result "0-1"]
[WhiteElo "2620"]
[BlackElo "2454"]
[TimeControl "180+1"]
[EndTime "10:56:14 PDT"]
[Termination "kingnb won by resignation"]

1. d4 {[%clk 0:03:00.9]} 1... d6 {[%clk 0:02:58]} 2. Nf3 {[%clk 0:03:00.3]} 2...
Bg4 {[%clk 0:02:57]} 3. g3 {[%clk 0:02:57.8]} 3... Nd7 {[%clk 0:02:55.7]} 4. Bg2
{[%clk 0:02:57]} 4... c6 {[%clk 0:02:55.4]} 5. O-O {[%clk 0:02:56.7]} 5... Ngf6
{[%clk 0:02:55.5]} 6. c4 {[%clk 0:02:50.5]} 6... g6 {[%clk 0:02:55.2]} 7. Nc3
{[%clk 0:02:50]} 7... Bg7 {[%clk 0:02:54.9]} 8. h3 {[%clk 0:02:46.8]} 8... Bxf3
{[%clk 0:02:54.3]} 9. Bxf3 {[%clk 0:02:46.4]} 9... O-O {[%clk 0:02:54.8]} 10. e3
{[%clk 0:02:40.1]} 10... e5 {[%clk 0:02:48.3]} 11. b3 {[%clk 0:02:36.6]} 11...
Re8 {[%clk 0:02:39.6]} 12. Bb2 {[%clk 0:02:31.6]} 12... e4 {[%clk 0:02:38.4]}
13. Bg2 {[%clk 0:02:27.4]} 13... h5 {[%clk 0:02:35.1]} 14. h4 {[%clk 0:02:24.6]}
14... Nb6 {[%clk 0:02:29.8]} 15. Rc1 {[%clk 0:02:11.9]} 15... d5 {[%clk
0:02:29.2]} 16. cxd5 {[%clk 0:02:10.9]} 16... Nbxd5 {[%clk 0:02:30.1]} 17. Nxd5
{[%clk 0:02:01.1]} 17... Nxd5 {[%clk 0:02:27.8]} 18. Qd2 {[%clk 0:01:57.8]}
18... Qd7 {[%clk 0:02:27.3]} 19. Kh2 {[%clk 0:01:45.7]} 19... Bf8 {[%clk
0:02:27.4]} 20. Bc3 {[%clk 0:01:35.4]} 20... Bd6 {[%clk 0:02:25.4]} 21. Kg1
{[%clk 0:01:19.6]} 21... Rac8 {[%clk 0:02:17.2]} 22. Qe2 {[%clk 0:01:13.7]}
22... Qe7 {[%clk 0:01:56.1]} 23. Rfd1 {[%clk 0:01:07.7]} 23... f5 {[%clk
0:01:54.7]} 24. Be1 {[%clk 0:01:04.9]} 24... Rf8 {[%clk 0:01:53.5]} 25. Rc2
{[%clk 0:00:52.5]} 25... Kh7 {[%clk 0:01:53.3]} 26. Rc4 {[%clk 0:00:41.7]} 26...
Kh6 {[%clk 0:01:50.7]} 27. f4 {[%clk 0:00:28.2]} 27... exf3 {[%clk 0:01:45.4]}
28. Qxf3 {[%clk 0:00:28.1]} 28... Qxe3+ {[%clk 0:01:43.9]} 29. Kh2 {[%clk
0:00:17.5]} 29... Qxf3 {[%clk 0:01:42.3]} 30. Bxf3 {[%clk 0:00:18.4]} 30... f4
{[%clk 0:01:39.9]} 31. Bxd5 {[%clk 0:00:03.7]} 31... cxd5 {[%clk 0:01:40.8]} 32.
Rxc8 {[%clk 0:00:02.2]} 32... Rxc8 {[%clk 0:01:39.7]} 33. gxf4 {[%clk
0:00:02.3]} 33... Bxf4+ {[%clk 0:01:36.8]} 34. Bg3 {[%clk 0:00:02.3]} 34... Rc2+
{[%clk 0:01:36.6]} 35. Kh3 {[%clk 0:00:02.6]} 35... Rc3 {[%clk 0:01:36.5]} 36.
Rg1 {[%clk 0:00:02.8]} 36... g5 {[%clk 0:01:34.1]} 37. hxg5+ {[%clk 0:00:02.1]}
37... Kxg5 {[%clk 0:01:35]} 38. Kh2 {[%clk 0:00:01.8]} 38... Rxg3 {[%clk
0:01:35.4]} 39. Rxg3+ {[%clk 0:00:02.7]} 0-1

[Event "*** Titled Tuesday Blitz"]
[Site "Chess.com"]
[Date "2020.04.21"]
[Round "5"]
[White "Diego_FloresQ"]
[Black "Hippotaner"]
[Result "1-0"]
[WhiteElo "2422"]
[BlackElo "2240"]
[TimeControl "180+1"]
[EndTime "10:56:14 PDT"]
[Termination "Diego_FloresQ won on time"]

1. e4 {[%clk 0:02:50.9]} 1... c5 {[%clk 0:02:55.6]} 2. Nf3 {[%clk 0:02:49.6]}
2... Nc6 {[%clk 0:02:26.5]} 3. d4 {[%clk 0:02:49.1]} 3... cxd4 {[%clk
0:02:25.4]} 4. Nxd4 {[%clk 0:02:46.1]} 4... Nf6 {[%clk 0:02:25.8]} 5. Nc3 {[%clk
0:02:43.7]} 5... e5 {[%clk 0:02:26]} 6. Ndb5 {[%clk 0:02:41.3]} 6... d6 {[%clk
0:02:26.2]} 7. Bg5 {[%clk 0:02:39]} 7... a6 {[%clk 0:02:26.1]} 8. Na3 {[%clk
0:02:36.5]} 8... b5 {[%clk 0:02:26.5]} 9. Nd5 {[%clk 0:02:32.9]} 9... Be7 {[%clk
0:02:26.7]} 10. Bxf6 {[%clk 0:02:30.6]} 10... Bxf6 {[%clk 0:02:27.6]} 11. c3
{[%clk 0:02:29.8]} 11... O-O {[%clk 0:02:27.9]} 12. Nc2 {[%clk 0:02:27.4]} 12...
Rb8 {[%clk 0:02:28]} 13. Ncb4 {[%clk 0:02:19.5]} 13... Nxb4 {[%clk 0:02:03.1]}
14. cxb4 {[%clk 0:02:19.1]} 14... Bg5 {[%clk 0:01:58.5]} 15. a4 {[%clk
0:02:18.3]} 15... Be6 {[%clk 0:01:54.2]} 16. axb5 {[%clk 0:02:14.5]} 16... axb5
{[%clk 0:01:49.5]} 17. Be2 {[%clk 0:02:12.3]} 17... Qd7 {[%clk 0:01:24.5]} 18.
O-O {[%clk 0:02:09.7]} 18... Rfc8 {[%clk 0:01:24.2]} 19. Qd3 {[%clk 0:01:52.3]}
19... Bxd5 {[%clk 0:01:14.5]} 20. Qxd5 {[%clk 0:01:51.6]} 20... Rc2 {[%clk
0:01:11.5]} 21. Bxb5 {[%clk 0:01:44.2]} 21... Qc7 {[%clk 0:00:47.4]} 22. Ra8
{[%clk 0:01:09.2]} 22... g6 {[%clk 0:00:39.6]} 23. Bc4 {[%clk 0:00:51.8]} 23...
Rxa8 {[%clk 0:00:37.5]} 24. Qxa8+ {[%clk 0:00:52.1]} 24... Kg7 {[%clk
0:00:36.8]} 25. b3 {[%clk 0:00:51.2]} 25... Qb6 {[%clk 0:00:30.7]} 26. Qd5
{[%clk 0:00:49.5]} 26... Qc7 {[%clk 0:00:18.7]} 27. b5 {[%clk 0:00:48.7]} 27...
Rd2 {[%clk 0:00:13.8]} 28. Qc6 {[%clk 0:00:46.6]} 28... Qe7 {[%clk 0:00:11]} 29.
b6 {[%clk 0:00:46.6]} 29... Ra2 {[%clk 0:00:08.9]} 30. b7 {[%clk 0:00:44.1]}
30... Qd8 {[%clk 0:00:03.5]} 31. Qc8 {[%clk 0:00:43.3]} 1-0

[Event "*** Titled Tuesday Blitz"]
[Site "Chess.com"]
[Date "2020.04.21"]
[Round "5"]
[White "WiktoriaPOL"]
[Black "ntmh281"]
[Result "0-1"]
[WhiteElo "2045"]
[BlackElo "2268"]
[TimeControl "180+1"]
[EndTime "10:56:14 PDT"]
[Termination "ntmh281 won on time"]

1. c4 {[%clk 0:03:00.9]} 1... Nf6 {[%clk 0:02:57.2]} 2. Nc3 {[%clk 0:03:00.4]}
2... c6 {[%clk 0:02:56.2]} 3. g3 {[%clk 0:02:57.1]} 3... d5 {[%clk 0:02:54.6]}
4. cxd5 {[%clk 0:02:56.9]} 4... cxd5 {[%clk 0:02:53.2]} 5. d4 {[%clk 0:02:56.2]}
5... Nc6 {[%clk 0:02:51.7]} 6. Bg2 {[%clk 0:02:55.9]} 6... Bf5 {[%clk 0:02:47]}
7. Nf3 {[%clk 0:02:51.9]} 7... e6 {[%clk 0:02:46.7]} 8. O-O {[%clk 0:02:50.4]}
8... h6 {[%clk 0:02:44.8]} 9. h4 {[%clk 0:02:39.8]} 9... Be7 {[%clk 0:02:43.8]}
10. Bf4 {[%clk 0:02:38.8]} 10... O-O {[%clk 0:02:39.3]} 11. Rc1 {[%clk
0:02:33.9]} 11... Rc8 {[%clk 0:02:32.5]} 12. a3 {[%clk 0:02:22.2]} 12... Ne4
{[%clk 0:02:30.6]} 13. e3 {[%clk 0:02:17.5]} 13... g5 {[%clk 0:02:17.8]} 14.
hxg5 {[%clk 0:02:04.4]} 14... hxg5 {[%clk 0:02:18.7]} 15. Be5 {[%clk 0:01:36.2]}
15... f6 {[%clk 0:02:18.4]} 16. Nxe4 {[%clk 0:01:34.4]} 16... dxe4 {[%clk
0:01:52.8]} 17. Bxf6 {[%clk 0:01:15.8]} 17... Bxf6 {[%clk 0:01:53.7]} 18. Nd2
{[%clk 0:01:08.4]} 18... Qd5 {[%clk 0:01:35.2]} 19. f3 {[%clk 0:00:55.2]} 19...
exf3 {[%clk 0:01:29.6]} 20. Bxf3 {[%clk 0:00:52.3]} 20... Qd7 {[%clk 0:01:18.1]}
21. Nb3 {[%clk 0:00:44.2]} 21... b6 {[%clk 0:01:08.4]} 22. g4 {[%clk 0:00:27.8]}
22... Bg6 {[%clk 0:01:07.5]} 23. d5 {[%clk 0:00:26.4]} 23... Ne7 {[%clk
0:00:56.9]} 24. d6 {[%clk 0:00:20]} 24... Nc6 {[%clk 0:00:48.8]} 25. Bxc6 {[%clk
0:00:05.9]} 25... Rxc6 {[%clk 0:00:49.7]} 26. Rxc6 {[%clk 0:00:05.5]} 26... Qxc6
{[%clk 0:00:49.8]} 27. Qd2 {[%clk 0:00:02.6]} 27... Qd5 {[%clk 0:00:41.8]} 28.
Qxd5 {[%clk 0:00:01.7]} 28... exd5 {[%clk 0:00:42.7]} 29. d7 {[%clk 0:00:01.5]}
29... Be7 {[%clk 0:00:41.6]} 0-1

[Event "*** Titled Tuesday Blitz"]
[Site "Chess.com"]
[Date "2020.04.21"]
[Round "5"]
[White "LionTheLeon_06"]
[Black "LiamPutnam2008"]
[Result "1-0"]
[WhiteElo "2628"]
[BlackElo "2477"]
[TimeControl "180+1"]
[EndTime "10:56:15 PDT"]
[Termination "LionTheLeon_06 won on time"]

1. d4 {[%clk 0:03:00.9]} 1... Nf6 {[%clk 0:01:45]} 2. c4 {[%clk 0:03:00]} 2...
e6 {[%clk 0:01:42.2]} 3. Nc3 {[%clk 0:02:59.7]} 3... Bb4 {[%clk 0:01:35.8]} 4.
e3 {[%clk 0:02:59.3]} 4... O-O {[%clk 0:01:34.7]} 5. Bd3 {[%clk 0:02:57.4]} 5...
c5 {[%clk 0:01:33.2]} 6. Ne2 {[%clk 0:02:52.3]} 6... d5 {[%clk 0:01:30.9]} 7. a3
{[%clk 0:02:49.8]} 7... Bxc3+ {[%clk 0:01:30.2]} 8. bxc3 {[%clk 0:02:49.8]} 8...
dxc4 {[%clk 0:01:30.8]} 9. Bxc4 {[%clk 0:02:50.1]} 9... a6 {[%clk 0:01:31.5]}
10. O-O {[%clk 0:02:46.8]} 10... b5 {[%clk 0:01:26]} 11. Bd3 {[%clk 0:02:46.2]}
11... Bb7 {[%clk 0:01:25.7]} 12. a4 {[%clk 0:02:44.9]} 12... c4 {[%clk 0:01:13]}
13. Bc2 {[%clk 0:02:43.4]} 13... Nbd7 {[%clk 0:01:13.5]} 14. f3 {[%clk
0:02:42.7]} 14... e5 {[%clk 0:01:11]} 15. e4 {[%clk 0:02:37]} 15... Qc7 {[%clk
0:01:10.6]} 16. Be3 {[%clk 0:02:32.5]} 16... Rfd8 {[%clk 0:01:09.4]} 17. Qd2
{[%clk 0:02:25.8]} 17... Ne8 {[%clk 0:00:53.6]} 18. f4 {[%clk 0:01:54.6]} 18...
Nd6 {[%clk 0:00:44.4]} 19. fxe5 {[%clk 0:01:46]} 19... Nxe4 {[%clk 0:00:44.4]}
20. Qe1 {[%clk 0:01:45.6]} 20... Qc6 {[%clk 0:00:44]} 21. Nf4 {[%clk 0:01:32.1]}
21... Nb6 {[%clk 0:00:30.6]} 22. d5 {[%clk 0:01:21.6]} 22... Qc7 {[%clk
0:00:16.4]} 23. Bxe4 {[%clk 0:01:16.4]} 23... Nxa4 {[%clk 0:00:14.8]} 24. d6
{[%clk 0:01:09.2]} 24... Qd7 {[%clk 0:00:13]} 25. Bxb7 {[%clk 0:01:07.2]} 25...
Qxb7 {[%clk 0:00:13.9]} 26. Bd4 {[%clk 0:01:07.5]} 26... Re8 {[%clk 0:00:13.2]}
27. Nh5 {[%clk 0:01:06]} 27... Re6 {[%clk 0:00:09.9]} 28. Qf2 {[%clk 0:01:00.2]}
28... Rf8 {[%clk 0:00:08.2]} 29. Rae1 {[%clk 0:00:59.1]} 29... Qd7 {[%clk
0:00:06.4]} 30. Re3 {[%clk 0:00:57]} 30... a5 {[%clk 0:00:05.4]} 31. Rg3 {[%clk
0:00:54.6]} 31... Rg6 {[%clk 0:00:05.9]} 32. Nxg7 {[%clk 0:00:47.5]} 32... b4
{[%clk 0:00:02.5]} 33. Nh5 {[%clk 0:00:45.3]} 1-0